[Event "DEN-chT XtraCon 2018-19"]
[Site "Denmark"]
[Date "2019.03.16"]
[Round "8"]
[White "Vang Glud, Jakob"]
[Black "Hillarp Persson, Tiger"]
[Result "1/2-1/2"]
[ECO "A15"]
[WhiteElo "2551"]
[BlackElo "2558"]
[Annotator "ChessBase"]
[PlyCount "104"]
[EventDate "2018.10.27"]
[EventType "team-tourn"]
[EventCountry "DEN"]
[SourceTitle "playchess.com"]
[Source "ChessBase"]
[SourceQuality "1"]
[TimeControl "40/5400+30:1800+30"]

1. c4 {[%emt 0:00:00]} Nf6 {[%emt 0:00:00]} 2. g3 {[%emt 0:00:00]} g6 {[%emt 0:00:00]} 3. Bg2 {[%emt 0:00:00]} Bg7 {[%emt 0:00:00]} 4. Nc3 {[%emt 0:00:00]} O-O {[%emt 0:00:00]} 5. Nf3 {[%emt 0:03:56]} d6 {[%emt 0:00:17]} 6. O-O {[%emt 0:00:06]} Nc6 {[%emt 0:01:54]} 7. d3 {[%emt 0:00:11]} a6 {[%emt 0:00:37]} 8. a3 {[%emt 0:03:57]} e5 {[%emt 0:07:20]} 9. Rb1 {[%emt 0:00:45]} Re8 {[%emt 0:01:33]} 10. Nd2 {[%emt 0:00:52]} Nd4 {[%emt 0:12:58]} 11. b4 {[%emt 0:01:10]} c6 {[%emt 0:00:34]} 12. e3 {[%emt 0:00:32]} Nf5 {[%emt 0:02:04]} 13. Nde4 {[%emt 0:01:41]} Be6 {[%emt 0:06:29]} 14. Bb2 {[%emt 0:09:37]} d5 {[%emt 0:06:56]} 15. cxd5 {[%emt 0:00:23]} cxd5 {[%emt 0:00:19]} 16. Nc5 {[%emt 0:00:19]} Bc8 {[%emt 0:00:21]} 17. e4 {[%emt 0:03:37]} dxe4 {[%emt 0:01:16]} 18. N3xe4 {[%emt 0:01:02]} Rb8 {[%emt 0:02:47]} 19. Re1 {[%emt 0:07:57]} b6 {[%emt 0:05:25]} 20. Nxf6+ {[%emt 0:03:15]} Bxf6 {[%emt 0:00:08]} 21. Ne4 {[%emt 0:00:23]} Bg7 {[%emt 0:00:10]} 22. Qa4 {[%emt 0:04:23]} Qd7 {[%emt 0:07:13]} 23. Qxd7 {[%emt 0:04:00]} Bxd7 {[%emt 0:00:07]} 24. Nd2 {[%emt 0:00:03]} f6 {[%emt 0:18:57]} 25. Bd5+ {[%emt 0:06:31]} Be6 {[%emt 0:01:58]} 26. Bc4 {[%emt 0:06:30]} Bxc4 {[%emt 0:09:55]} 27. Nxc4 {[%emt 0:00:03]} Red8 {[%emt 0:00:31]} 28. Rbd1 {[%emt 0:00:05]} Kf7 {[%emt 0:00:58]} 29. Kf1 {[%emt 0:00:04]} Rb7 {[%emt 0:05:03]} 30. Ke2 {[%emt 0:05:03]} h5 {[%emt 0:00:31]} 31. Ne3 {[%emt 0:04:31]} Nxe3 {[%emt 0:02:22]} 32. fxe3 {[%emt 0:00:24]} Rc7 {[%emt 0:00:19]} 33. Rc1 {[%emt 0:00:19]} Rdc8 {[%emt 0:00:07]} 34. Rxc7+ {[%emt 0:00:57]} Rxc7 {[%emt 0:00:06]} 35. Rc1 {[%emt 0:00:23]} Rxc1 {[%emt 0:00:12]} 36. Bxc1 {[%emt 0:00:02]} Bh6 {[%emt 0:01:26]} 37. Bb2 {[%emt 0:02:01]} Ke6 {[%emt 0:00:08]} 38. a4 {[%emt 0:04:30]} b5 {[%emt 0:00:07]} 39. axb5 {[%emt 0:00:04]} axb5 {[%emt 0:00:07]} 40. Bc3 {[%emt 0:01:22]} g5 {[%emt 0:05:13]} 41. h3 {[%emt 0:31:15]} g4 {[%emt 0:33:15]} 42. hxg4 {[%emt 0:01:12]} hxg4 {[%emt 0:00:09]} 43. e4 {[%emt 0:00:09]} f5 {[%emt 0:00:07]} 44. Kf2 {[%emt 0:00:26]} Bc1 {[%emt 0:01:00]} 45. Ke2 {[%emt 0:01:36]} f4 {[%emt 0:00:00]} 46. Kf2 {[%emt 0:00:00]} Be3+ {[%emt 0:00:00]} 47. Kg2 {[%emt 0:00:00]} Kd6 {[%emt 0:00:00]} 48. Be1 {[%emt 0:00:00]} Ke7 {[%emt 0:00:00]} 49. Bc3 {[%emt 0:00:00]} Ke6 {[%emt 0:00:00]} 50. Be1 {[%emt 0:00:00]} Bd4 {[%emt 0:00:00]} 51. Bd2 {[%emt 0:00:00]} f3+ {[%emt 0:00:00]} 52. Kf1 {[%emt 0:00:00]} Kf6 {[%emt 0:00:00]} 1/2-1/2

[Event "DEN-chT XtraCon 2018-19"]
[Site "Denmark"]
[Date "2019.03.16"]
[Round "8"]
[White "Brunello, Sabino"]
[Black "Pedersen, Nikcolai V."]
[Result "1/2-1/2"]
[ECO "A46"]
[WhiteElo "2538"]
[BlackElo "2384"]
[Annotator "ChessBase"]
[PlyCount "85"]
[EventDate "2018.10.27"]
[EventType "team-tourn"]
[EventCountry "DEN"]
[SourceTitle "playchess.com"]
[Source "ChessBase"]
[SourceQuality "1"]
[TimeControl "40/5400+30:1800+30"]

1. d4 {[%emt 0:00:00]} Nf6 {[%emt 0:00:00]} 2. Nf3 {[%emt 0:00:03]} e6 {[%emt 0:00:14]} 3. c4 {[%emt 0:03:02]} Bb4+ {[%emt 0:02:30]} 4. Bd2 {[%emt 0:04:42]} c5 {[%emt 0:01:30]} 5. Bxb4 {[%emt 0:01:17]} cxb4 {[%emt 0:00:06]} 6. e3 {[%emt 0:00:31]} b6 {[%emt 0:01:35]} 7. a3 {[%emt 0:05:03]} bxa3 {[%emt 0:13:53]} 8. b4 {[%emt 0:01:23]} Qe7 {[%emt 0:02:36]} 9. Qb3 {[%emt 0:04:48]} Bb7 {[%emt 0:15:08]} 10. Be2 {[%emt 0:05:29]} Ne4 {[%emt 0:17:32]} 11. O-O {[%emt 0:03:56]} O-O {[%emt 0:02:07]} 12. Rxa3 {[%emt 0:04:38]} Nc6 {[%emt 0:10:16]} 13. b5 {[%emt 0:08:57]} Na5 {[%emt 0:02:01]} 14. Qa2 {[%emt 0:01:13]} a6 {[%emt 0:04:48]} 15. bxa6 {[%emt 0:03:53]} Bxa6 {[%emt 0:00:34]} 16. Nbd2 {[%emt 0:00:47]} Nxd2 {[%emt 0:01:59]} 17. Nxd2 {[%emt 0:00:04]} d5 {[%emt 0:03:32]} 18. Rb1 {[%emt 0:05:34]} Rac8 {[%emt 0:06:24]} 19. Rxb6 {[%emt 0:09:36]} Bxc4 {[%emt 0:00:29]} 20. Nxc4 {[%emt 0:02:58]} Nxc4 {[%emt 0:00:10]} 21. Bxc4 {[%emt 0:08:43]} Rxc4 {[%emt 0:01:47]} 22. g3 {[%emt 0:00:27]} Qc7 {[%emt 0:01:47]} 23. Rb2 {[%emt 0:01:25]} Rc1+ {[%emt 0:01:56]} 24. Kg2 {[%emt 0:00:01]} Qc4 {[%emt 0:03:43]} 25. Qxc4 {[%emt 0:00:14]} Rxc4 {[%emt 0:00:24]} 26. Ra7 {[%emt 0:00:27]} h5 {[%emt 0:00:54]} 27. Kf3 {[%emt 0:04:44]} Kh7 {[%emt 0:00:11]} 28. h4 {[%emt 0:01:57]} Kg6 {[%emt 0:00:23]} 29. Rd7 {[%emt 0:03:18]} Kf6 {[%emt 0:01:46]} 30. Rb6 {[%emt 0:02:56]} Kf5 {[%emt 0:01:47]} 31. Rbb7 {[%emt 0:00:59]} Kf6 {[%emt 0:00:24]} 32. Kf4 {[%emt 0:01:11]} Rcc8 {[%emt 0:01:02]} 33. f3 {[%emt 0:02:45]} Rcd8 {[%emt 0:00:37]} 34. Rdc7 {[%emt 0:04:29]} Rc8 {[%emt 0:00:14]} 35. e4 {[%emt 0:00:11]} Rxc7 {[%emt 0:00:35]} 36. Rxc7 {[%emt 0:00:07]} dxe4 {[%emt 0:00:39]} 37. fxe4 {[%emt 0:00:22]} Ra8 {[%emt 0:00:40]} 38. Rc5 {[%emt 0:01:34]} Ra4 {[%emt 0:00:39]} 39. Ke3 {[%emt 0:00:20]} Ra3+ {[%emt 0:00:14]} 40. Kf4 {[%emt 0:00:05]} Rd3 {[%emt 0:00:36]} 41. Rxh5 {[%emt 0:31:19]} Rxd4 {[%emt 0:30:42]} 42. g4 {[%emt 0:02:17]} g6 {[%emt 0:00:00]} 43. Ra5 {[%emt 0:00:00] Ke5+} 1/2-1/2

[Event "DEN-chT XtraCon 2018-19"]
[Site "Denmark"]
[Date "2019.03.16"]
[Round "8"]
[White "Schandorf, Lars"]
[Black "Rasmussen, Allan Stig"]
[Result "1/2-1/2"]
[ECO "A28"]
[WhiteElo "2496"]
[BlackElo "2547"]
[Annotator "ChessBase"]
[PlyCount "68"]
[EventDate "2018.10.27"]
[EventType "team-tourn"]
[EventCountry "DEN"]
[SourceTitle "playchess.com"]
[Source "ChessBase"]
[SourceQuality "1"]
[TimeControl "40/5400+30:1800+30"]

1. c4 {[%emt 0:00:00]} e5 {[%emt 0:04:09]} 2. Nc3 {[%emt 0:00:00]} Nf6 {[%emt 0:00:09]} 3. Nf3 {[%emt 0:00:08]} Nc6 {[%emt 0:00:12]} 4. e3 {[%emt 0:00:44]} d6 {[%emt 0:08:01]} 5. d4 {[%emt 0:05:41]} g6 {[%emt 0:01:49]} 6. Be2 {[%emt 0:06:26]} exd4 {[%emt 0:07:17]} 7. Nxd4 {[%emt 0:05:59]} Nxd4 {[%emt 0:02:55]} 8. exd4 {[%emt 0:05:57]} Bg7 {[%emt 0:01:14]} 9. O-O {[%emt 0:00:12]} O-O {[%emt 0:00:13]} 10. Be3 {[%emt 0:05:41]} Re8 {[%emt 0:02:44]} 11. Qd2 {[%emt 0:02:03]} c6 {[%emt 0:09:37]} 12. Rfe1 {[%emt 0:04:52]} Be6 {[%emt 0:08:01]} 13. Bg5 {[%emt 0:07:31]} Qb6 {[%emt 0:08:09]} 14. Rad1 {[%emt 0:00:39]} Bf5 {[%emt 0:04:53]} 15. Bf3 {[%emt 0:07:40]} h6 {[%emt 0:09:29]} 16. Bf4 {[%emt 0:09:23]} Qb4 {[%emt 0:00:25]} 17. Be2 {[%emt 0:10:19]} Rad8 {[%emt 0:03:59]} 18. Ne4 {[%emt 0:10:04]} Qxd2 {[%emt 0:00:26]} 19. Nxf6+ {[%emt 0:00:20]} Bxf6 {[%emt 0:00:08]} 20. Rxd2 {[%emt 0:00:05]} c5 {[%emt 0:03:53]} 21. dxc5 {[%emt 0:04:52]} dxc5 {[%emt 0:00:09]} 22. Red1 {[%emt 0:04:02]} Rxd2 {[%emt 0:15:47]} 23. Rxd2 {[%emt 0:00:07]} Kg7 {[%emt 0:00:36]} 24. Be3 {[%emt 0:00:37]} b6 {[%emt 0:00:28]} 25. g3 {[%emt 0:06:21]} Rd8 {[%emt 0:05:25]} 26. Rxd8 {[%emt 0:00:39]} Bxd8 {[%emt 0:00:01]} 27. a3 {[%emt 0:01:25]} Bf6 {[%emt 0:01:47]} 28. b4 {[%emt 0:00:43]} cxb4 {[%emt 0:01:12]} 29. axb4 {[%emt 0:00:06]} a5 {[%emt 0:00:30]} 30. c5 {[%emt 0:01:44]} axb4 {[%emt 0:00:40]} 31. cxb6 {[%emt 0:00:05]} b3 {[%emt 0:00:29]} 32. b7 {[%emt 0:00:36]} b2 {[%emt 0:00:34]} 33. b8=Q {[%emt 0:00:13]} b1=Q+ {[%emt 0:00:06]} 34. Qxb1 {[%emt 0:00:07]} Bxb1 {[%emt 0:00:07]} 1/2-1/2

[Event "DEN-chT XtraCon 2018-19"]
[Site "Denmark"]
[Date "2019.03.16"]
[Round "8"]
[White "Danielsen, Henrik"]
[Black "Boe, Mads"]
[Result "1-0"]
[ECO "B10"]
[WhiteElo "2493"]
[BlackElo "2295"]
[Annotator "ChessBase"]
[PlyCount "71"]
[EventDate "2018.10.27"]
[EventType "team-tourn"]
[EventCountry "DEN"]
[SourceTitle "playchess.com"]
[Source "ChessBase"]
[SourceQuality "1"]
[TimeControl "40/5400+30:1800+30"]

1. e4 {[%emt 0:00:00]} c6 {[%emt 0:00:00]} 2. d3 {[%emt 0:01:03]} d5 {[%emt 0:00:00]} 3. Nf3 {[%emt 0:00:13]} dxe4 {[%emt 0:05:05]} 4. dxe4 {[%emt 0:00:11]} Qxd1+ {[%emt 0:00:09]} 5. Kxd1 {[%emt 0:00:04]} Bg4 {[%emt 0:07:46]} 6. Be3 {[%emt 0:00:17]} Nf6 {[%emt 0:07:26]} 7. Bd3 {[%emt 0:00:12]} Nbd7 {[%emt 0:01:56]} 8. Nbd2 {[%emt 0:00:09]} e6 {[%emt 0:03:36]} 9. Ke2 {[%emt 0:02:52]} Bc5 {[%emt 0:16:22]} 10. h3 {[%emt 0:00:50]} Bxf3+ {[%emt 0:01:05]} 11. Kxf3 {[%emt 0:02:10]} Bxe3 {[%emt 0:01:36]} 12. Kxe3 {[%emt 0:00:08]} Ke7 {[%emt 0:01:09]} 13. f4 {[%emt 0:02:57]} e5 {[%emt 0:03:00]} 14. g3 {[%emt 0:02:33]} Ne8 {[%emt 0:07:14]} 15. Nc4 {[%emt 0:01:15]} f6 {[%emt 0:00:48]} 16. Rhd1 {[%emt 0:02:19]} Nd6 {[%emt 0:07:23]} 17. Na5 {[%emt 0:02:00]} Rac8 {[%emt 0:01:54]} 18. Rd2 {[%emt 0:03:48]} Nc5 {[%emt 0:05:06]} 19. b4 {[%emt 0:08:34]} Nxd3 {[%emt 0:04:17]} 20. cxd3 {[%emt 0:00:03]} c5 {[%emt 0:00:35]} 21. b5 {[%emt 0:04:53]} g5 {[%emt 0:08:52]} 22. fxe5 {[%emt 0:01:10]} fxe5 {[%emt 0:00:06]} 23. Nc4 {[%emt 0:00:08]} Ke6 {[%emt 0:02:18]} 24. Nxd6 {[%emt 0:07:06]} Kxd6 {[%emt 0:00:26]} 25. Rf1 {[%emt 0:00:03]} Rhf8 {[%emt 0:00:17]} 26. Rf5 {[%emt 0:00:17]} Rxf5 {[%emt 0:03:00]} 27. exf5 {[%emt 0:00:01]} Kd5 {[%emt 0:01:01]} 28. Rf2 {[%emt 0:00:24]} Rf8 {[%emt 0:02:32]} 29. g4 {[%emt 0:00:43]} Rf6 {[%emt 0:02:21]} 30. a4 {[%emt 0:00:12]} b6 {[%emt 0:02:13]} 31. Rf1 {[%emt 0:01:35]} Rf7 {[%emt 0:00:42]} 32. a5 {[%emt 0:07:10]} Rf6 {[%emt 0:02:37]} 33. axb6 {[%emt 0:00:36]} axb6 {[%emt 0:00:07]} 34. Rf2 {[%emt 0:00:09]} Rf7 {[%emt 0:00:37]} 35. Ra2 {[%emt 0:00:18]} Rf6 {[%emt 0:03:12]} 36. Ra7 {[%emt 0:00:11]} 1-0

[Event "DEN-chT XtraCon 2018-19"]
[Site "Denmark"]
[Date "2019.03.16"]
[Round "8"]
[White "Moller Ochsner, Bjorn"]
[Black "Banusz, Tamas"]
[Result "1/2-1/2"]
[ECO "C91"]
[WhiteElo "2483"]
[BlackElo "2614"]
[Annotator "ChessBase"]
[PlyCount "68"]
[EventDate "2018.10.27"]
[EventType "team-tourn"]
[EventCountry "DEN"]
[SourceTitle "playchess.com"]
[Source "ChessBase"]
[SourceQuality "1"]
[TimeControl "40/5400+30:1800+30"]

1. e4 {[%emt 0:00:00]} e5 {[%emt 0:00:00]} 2. Nf3 {[%emt 0:00:00]} Nc6 {[%emt 0:00:00]} 3. Bb5 {[%emt 0:00:00]} a6 {[%emt 0:00:04]} 4. Ba4 {[%emt 0:00:01]} Nf6 {[%emt 0:00:32]} 5. O-O {[%emt 0:00:27]} Be7 {[%emt 0:00:08]} 6. Re1 {[%emt 0:00:07]} b5 {[%emt 0:00:08]} 7. Bb3 {[%emt 0:00:02]} d6 {[%emt 0:00:08]} 8. c3 {[%emt 0:00:09]} O-O {[%emt 0:00:11]} 9. d4 {[%emt 0:00:11]} Bg4 {[%emt 0:00:41]} 10. Be3 {[%emt 0:00:11]} exd4 {[%emt 0:00:35]} 11. cxd4 {[%emt 0:00:11]} Na5 {[%emt 0:00:13]} 12. Bc2 {[%emt 0:00:14]} c5 {[%emt 0:00:06]} 13. h3 {[%emt 0:03:22]} Bh5 {[%emt 0:00:16]} 14. Nbd2 {[%emt 0:00:39]} cxd4 {[%emt 0:02:51]} 15. Bxd4 {[%emt 0:00:45]} Nc6 {[%emt 0:00:54]} 16. Be3 {[%emt 0:09:24]} d5 {[%emt 0:02:26]} 17. exd5 {[%emt 0:13:23]} Nxd5 {[%emt 0:00:47]} 18. Qb1 {[%emt 0:01:10]} Bg6 {[%emt 0:03:21]} 19. Bxg6 {[%emt 0:01:06]} hxg6 {[%emt 0:00:11]} 20. a4 {[%emt 0:04:02]} Rc8 {[%emt 0:04:10]} 21. axb5 {[%emt 0:12:17]} axb5 {[%emt 0:00:09]} 22. Ne4 {[%emt 0:01:45]} Nxe3 {[%emt 0:09:50]} 23. Rxe3 {[%emt 0:00:24]} Nb4 {[%emt 0:00:10]} 24. Nc3 {[%emt 0:09:49]} Bc5 {[%emt 0:01:16]} 25. Re2 {[%emt 0:01:20]} Re8 {[%emt 0:02:27]} 26. Rxe8+ {[%emt 0:05:17]} Qxe8 {[%emt 0:00:06]} 27. Qf1 {[%emt 0:01:09]} Rd8 {[%emt 0:02:17]} 28. Rd1 {[%emt 0:12:47]} Rxd1 {[%emt 0:00:44]} 29. Qxd1 {[%emt 0:00:29]} f6 {[%emt 0:00:54]} 30. Kf1 {[%emt 0:05:05]} Qe6 {[%emt 0:04:25]} 31. Nxb5 {[%emt 0:05:46]} Qc4+ {[%emt 0:00:33]} 32. Qe2 {[%emt 0:00:15]} Nd3 {[%emt 0:00:30]} 33. Ne1 {[%emt 0:01:57]} Nxb2 {[%emt 0:00:10]} 34. Qxc4+ {[%emt 0:00:11]} Nxc4 {[%emt 0:00:05]} 1/2-1/2

[Event "DEN-chT XtraCon 2018-19"]
[Site "Denmark"]
[Date "2019.03.16"]
[Round "8"]
[White "Hector, Jonny"]
[Black "Rodgaard, John"]
[Result "1/2-1/2"]
[ECO "C15"]
[WhiteElo "2468"]
[BlackElo "2281"]
[Annotator "ChessBase"]
[PlyCount "94"]
[EventDate "2018.10.27"]
[EventType "team-tourn"]
[EventCountry "DEN"]
[SourceTitle "playchess.com"]
[Source "ChessBase"]
[SourceQuality "1"]
[TimeControl "40/5400+30:1800+30"]

1. e4 {[%emt 0:00:00]} e6 {[%emt 0:00:00]} 2. d4 {[%emt 0:00:00]} d5 {[%emt 0:00:00]} 3. Nc3 {[%emt 0:00:00]} Bb4 {[%emt 0:00:05]} 4. Bd3 {[%emt 0:00:08]} dxe4 {[%emt 0:03:28]} 5. Bxe4 {[%emt 0:00:07]} Nf6 {[%emt 0:00:17]} 6. Bf3 {[%emt 0:00:09]} c5 {[%emt 0:00:50]} 7. Nge2 {[%emt 0:00:13]} Nc6 {[%emt 0:00:59]} 8. Be3 {[%emt 0:00:10]} cxd4 {[%emt 0:01:28]} 9. Nxd4 {[%emt 0:00:09]} Bxc3+ {[%emt 0:02:39]} 10. bxc3 {[%emt 0:00:09]} Ne5 {[%emt 0:01:34]} 11. Nb5 {[%emt 0:00:11]} Qa5 {[%emt 0:39:13]} 12. Be2 {[%emt 0:00:10]} O-O {[%emt 0:09:40]} 13. Qd6 {[%emt 0:11:27]} Nc6 {[%emt 0:06:10]} 14. O-O {[%emt 0:07:25]} Nd5 {[%emt 0:14:18]} 15. c4 {[%emt 0:11:42]} Nxe3 {[%emt 0:06:39]} 16. fxe3 {[%emt 0:00:14]} e5 {[%emt 0:01:46]} 17. Rad1 {[%emt 0:12:57]} Be6 {[%emt 0:02:09]} 18. Qc7 {[%emt 0:01:39]} Rfc8 {[%emt 0:00:54]} 19. Qxa5 {[%emt 0:07:51]} Nxa5 {[%emt 0:00:03]} 20. Nd6 {[%emt 0:00:27]} Rc7 {[%emt 0:00:45]} 21. Rd2 {[%emt 0:01:55]} g6 {[%emt 0:01:20]} 22. Rb1 {[%emt 0:03:21]} b6 {[%emt 0:02:03]} 23. Rb5 {[%emt 0:04:26]} Bxc4 {[%emt 0:01:44]} 24. Rxa5 {[%emt 0:02:00]} Bxe2 {[%emt 0:00:05]} 25. Rxe5 {[%emt 0:01:06]} Bc4 {[%emt 0:00:43]} 26. Nxc4 {[%emt 0:02:38]} Rxc4 {[%emt 0:00:02]} 27. Re7 {[%emt 0:00:16]} a5 {[%emt 0:00:50]} 28. Rb7 {[%emt 0:03:48]} Rc6 {[%emt 0:02:14]} 29. h4 {[%emt 0:07:20]} Rf6 {[%emt 0:01:17]} 30. Rc7 {[%emt 0:01:58]} Re8 {[%emt 0:00:28]} 31. Rc3 {[%emt 0:03:12]} Re4 {[%emt 0:00:46]} 32. Rd4 {[%emt 0:01:24]} Rxd4 {[%emt 0:00:16]} 33. exd4 {[%emt 0:00:06]} Rf4 {[%emt 0:00:19]} 34. Rc8+ {[%emt 0:00:09]} Kg7 {[%emt 0:00:04]} 35. c3 {[%emt 0:00:07]} b5 {[%emt 0:00:57]} 36. g3 {[%emt 0:04:32]} Rf3 {[%emt 0:00:20]} 37. Kg2 {[%emt 0:00:29]} Rd3 {[%emt 0:00:13]} 38. Kh3 {[%emt 0:03:24]} h5 {[%emt 0:00:44]} 39. Rc5 {[%emt 0:02:34]} b4 {[%emt 0:00:16]} 40. cxb4 {[%emt 0:00:12]} axb4 {[%emt 0:00:02]} 41. Rc4 {[%emt 0:30:25]} b3 {[%emt 0:30:19]} 42. axb3 {[%emt 0:00:06]} Rxb3 {[%emt 0:00:07]} 43. Kg2 {[%emt 0:02:21]} Rd3 {[%emt 0:01:47]} 44. Ra4 {[%emt 0:01:29]} Kf6 {[%emt 0:00:00]} 45. Ra6+ {[%emt 0:00:00]} Kf5 {[%emt 0:00:00]} 46. Ra5+ {[%emt 0:00:00]} Ke6 {[%emt 0:00:00]} 47. Ra6+ {[%emt 0:00:00]} Kf5 {[%emt 0:00:00]} 1/2-1/2

[Event "DEN-chT XtraCon 2018-19"]
[Site "Denmark"]
[Date "2019.03.16"]
[Round "8"]
[White "Mikkelsen, Nikolaj"]
[Black "Teplyi, Igor"]
[Result "1/2-1/2"]
[ECO "B51"]
[WhiteElo "2459"]
[BlackElo "2417"]
[Annotator "ChessBase"]
[PlyCount "36"]
[EventDate "2018.10.27"]
[EventType "team-tourn"]
[EventCountry "DEN"]
[SourceTitle "playchess.com"]
[Source "ChessBase"]
[SourceQuality "1"]
[TimeControl "40/5400+30:1800+30"]

1. e4 {[%emt 0:00:00]} c5 {[%emt 0:02:59]} 2. Nf3 {[%emt 0:00:00]} d6 {[%emt 0:00:05]} 3. Bb5+ {[%emt 0:00:32]} Nd7 {[%emt 0:00:09]} 4. O-O {[%emt 0:01:27]} a6 {[%emt 0:00:06]} 5. Bd3 {[%emt 0:00:42]} Ngf6 {[%emt 0:00:38]} 6. Qe2 {[%emt 0:03:47]} g6 {[%emt 0:10:31]} 7. c3 {[%emt 0:00:31]} Bh6 {[%emt 0:00:07]} 8. Bc2 {[%emt 0:13:15]} O-O {[%emt 0:00:25]} 9. d4 {[%emt 0:12:28]} Bxc1 {[%emt 0:00:11]} 10. Rxc1 {[%emt 0:00:04]} e5 {[%emt 0:06:51]} 11. Nbd2 {[%emt 0:17:21]} cxd4 {[%emt 0:02:11]} 12. cxd4 {[%emt 0:00:07]} exd4 {[%emt 0:00:44]} 13. Qc4 {[%emt 0:05:56]} Ne5 {[%emt 0:14:54]} 14. Qxd4 {[%emt 0:00:33]} Qe7 {[%emt 0:02:49]} 15. Bb3 {[%emt 0:09:59]} Bg4 {[%emt 0:10:07]} 16. Nxe5 {[%emt 0:01:18]} dxe5 {[%emt 0:00:12]} 17. Qc5 {[%emt 0:06:25]} Qxc5 {[%emt 0:05:42]} 18. Rxc5 {[%emt 0:00:06]} Rad8 {[%emt 0:00:55]} 1/2-1/2

[Event "DEN-chT XtraCon 2018-19"]
[Site "Denmark"]
[Date "2019.03.16"]
[Round "8"]
[White "Pilgaard, Kim"]
[Black "Vinther-Schou, Uffe"]
[Result "1-0"]
[ECO "E20"]
[WhiteElo "2416"]
[BlackElo "2357"]
[Annotator "ChessBase"]
[PlyCount "65"]
[EventDate "2018.10.27"]
[EventType "team-tourn"]
[EventCountry "DEN"]
[SourceTitle "playchess.com"]
[Source "ChessBase"]
[SourceQuality "1"]
[TimeControl "40/5400+30:1800+30"]

1. d4 {[%emt 0:00:00]} Nf6 {[%emt 0:00:00]} 2. c4 {[%emt 0:00:09]} e6 {[%emt 0:02:17]} 3. Nc3 {[%emt 0:00:36]} Bb4 {[%emt 0:00:21]} 4. e3 {[%emt 0:02:28]} O-O {[%emt 0:02:40]} 5. Bd3 {[%emt 0:01:00]} c5 {[%emt 0:00:17]} 6. Nf3 {[%emt 0:04:06]} Nc6 {[%emt 0:02:42]} 7. O-O {[%emt 0:00:50]} Bxc3 {[%emt 0:01:33]} 8. bxc3 {[%emt 0:00:12]} d6 {[%emt 0:00:18]} 9. Re1 {[%emt 0:25:11]} e5 {[%emt 0:00:32]} 10. Nd2 {[%emt 0:00:17]} Re8 {[%emt 0:05:22]} 11. d5 {[%emt 0:02:17]} e4 {[%emt 0:12:09]} 12. Nxe4 {[%emt 0:00:49]} Nxe4 {[%emt 0:00:48]} 13. dxc6 {[%emt 0:00:45]} Qh4 {[%emt 0:16:42]} 14. Qc2 {[%emt 0:09:14]} bxc6 {[%emt 0:02:52]} 15. Rd1 {[%emt 0:14:39]} Nf6 {[%emt 0:16:17]} 16. f3 {[%emt 0:02:27]} d5 {[%emt 0:04:57]} 17. Rb1 {[%emt 0:01:12]} Be6 {[%emt 0:09:19]} 18. Bf1 {[%emt 0:02:25]} Nd7 {[%emt 0:08:21]} 19. cxd5 {[%emt 0:10:30]} cxd5 {[%emt 0:00:01]} 20. Bb5 {[%emt 0:00:13]} Red8 {[%emt 0:02:00]} 21. Ba3 {[%emt 0:00:33]} Rac8 {[%emt 0:01:13]} 22. Ba6 {[%emt 0:04:56]} Rc7 {[%emt 0:00:10]} 23. e4 {[%emt 0:03:52]} Nb6 {[%emt 0:04:11]} 24. exd5 {[%emt 0:00:40]} Nxd5 {[%emt 0:02:26]} 25. Qe4 {[%emt 0:02:31]} Qf6 {[%emt 0:01:12]} 26. Rbc1 {[%emt 0:02:33]} Bf5 {[%emt 0:01:23]} 27. Qe1 {[%emt 0:01:06]} Nf4 {[%emt 0:02:38]} 28. Rxd8+ {[%emt 0:00:44]} Qxd8 {[%emt 0:00:01]} 29. Qe5 {[%emt 0:01:18]} Nd3 {[%emt 0:00:05]} 30. Rd1 {[%emt 0:00:40]} Bg6 {[%emt 0:01:03]} 31. Bxd3 {[%emt 0:00:48]} Re7 32. Qxc5 Rd7 33. Re1 1-0

[Event "DEN-chT XtraCon 2018-19"]
[Site "Denmark"]
[Date "2019.03.16"]
[Round "8"]
[White "Hansen, Mads"]
[Black "Chatalbashev, Boris"]
[Result "0-1"]
[ECO "B06"]
[WhiteElo "2413"]
[BlackElo "2525"]
[Annotator "ChessBase"]
[PlyCount "80"]
[EventDate "2018.10.27"]
[EventType "team-tourn"]
[EventCountry "DEN"]
[SourceTitle "playchess.com"]
[Source "ChessBase"]
[SourceQuality "1"]
[TimeControl "40/5400+30:1800+30"]

1. e4 {[%emt 0:00:00]} g6 {[%emt 0:00:00]} 2. d4 {[%emt 0:00:00]} Bg7 {[%emt 0:00:00]} 3. Nf3 {[%emt 0:00:04]} d6 {[%emt 0:00:00]} 4. Bc4 {[%emt 0:00:11]} Nf6 {[%emt 0:00:00]} 5. Qe2 {[%emt 0:00:13]} O-O {[%emt 0:00:06]} 6. e5 {[%emt 0:03:17]} dxe5 {[%emt 0:00:06]} 7. dxe5 {[%emt 0:00:05]} Nd5 {[%emt 0:00:05]} 8. O-O {[%emt 0:05:11]} c6 {[%emt 0:00:06]} 9. h3 {[%emt 0:10:17]} Be6 {[%emt 0:00:08]} 10. a4 {[%emt 0:04:28]} Nd7 {[%emt 0:00:49]} 11. Na3 {[%emt 0:00:46]} Qc7 {[%emt 0:11:20]} 12. Re1 {[%emt 0:00:08]} a6 {[%emt 0:02:39]} 13. Bd2 {[%emt 0:06:25]} b5 {[%emt 0:01:17]} 14. Ba2 {[%emt 0:00:05]} Rfb8 {[%emt 0:09:28]} 15. a5 {[%emt 0:08:17]} c5 {[%emt 0:10:04]} 16. c4 {[%emt 0:01:22]} Nb4 {[%emt 0:01:59]} 17. Bb1 {[%emt 0:01:09]} bxc4 {[%emt 0:15:24]} 18. Nxc4 {[%emt 0:08:49]} Rb5 {[%emt 0:03:46]} 19. Ng5 {[%emt 0:05:57]} Nf8 {[%emt 0:09:11]} 20. Be4 {[%emt 0:03:12]} Rd8 {[%emt 0:00:07]} 21. Bc3 {[%emt 0:01:05]} Nd5 {[%emt 0:03:46]} 22. Nxe6 {[%emt 0:06:47]} Nxe6 {[%emt 0:00:04]} 23. Bxd5 {[%emt 0:12:53]} Rxd5 {[%emt 0:00:04]} 24. Qe4 {[%emt 0:00:37]} Qd8 {[%emt 0:12:17]} 25. Nd6 {[%emt 0:04:55]} Rd4 {[%emt 0:00:06]} 26. Bxd4 {[%emt 0:01:08]} exd6 {[%emt 0:00:07]} 27. Bc3 {[%emt 0:01:43]} d5 {[%emt 0:00:06]} 28. Qc2 {[%emt 0:00:35]} d4 {[%emt 0:00:35]} 29. Rad1 {[%emt 0:00:56]} Qd5 {[%emt 0:07:17]} 30. Bd2 {[%emt 0:00:38]} d3 {[%emt 0:01:45]} 31. Qc1 {[%emt 0:02:38]} Bxe5 {[%emt 0:01:21]} 32. Bc3 {[%emt 0:00:20]} Bxc3 {[%emt 0:04:46]} 33. Qxc3 {[%emt 0:00:02]} c4 {[%emt 0:00:16]} 34. Qf6 {[%emt 0:01:43]} Qf5 {[%emt 0:01:30]} 35. Qe7 {[%emt 0:01:48]} Rxb2 {[%emt 0:00:45]} 36. Qa7 {[%emt 0:01:11]} c3 {[%emt 0:03:32]} 37. Qe3 {[%emt 0:05:14]} d2 {[%emt 0:00:22]} 38. Rf1 {[%emt 0:00:44]} Qc5 {[%emt 0:00:15]} 39. Kh2 {[%emt 0:00:57]} Qxe3 {[%emt 0:00:55]} 40. fxe3 {[%emt 0:00:01]} Nc5 {[%emt 0:01:03]} 0-1